Cogmind - Beta 17.1 @@@ ROGUE MODE // 2026.08.25 @ 13:54:14 Player: Minty Result: Destroyed self with Subdweller Shrapnel Launcher Performance ------------- Evolutions (0) 0 Regions Visited (3) 600 Robots Destroyed (23) 115 Value Destroyed (786) 786 Prototype IDs (0) 0 Alien Tech Used (0) 0 Bonus (-94) -94 TOTAL SCORE: 1407 Bonus ------- Friendly Fire -94 Cogmind --------- Core Integrity 0/250 Matter 255/300 Energy 85/100 System Corruption 0% Temperature Cool (0) Movement Treading (160) Location -10/Subcaves Parts ------- > --- POWER (1) -------- (None) > --- PROPULSION (2) --- Light Treads > --- UTILITY (2) ------ (None) > --- WEAPON (2) ------- Ion Cannon Subdweller Shrapnel Launcher > --- INVENTORY (5) ---- Improved Trap Extractor (5/6 Blade) Battle Cannon Heavy Flail Makeshift Axe Peak State ------------ > --- POWER ------------ Light Nuclear Core > --- PROPULSION ------- Light Treads Light Treads > --- UTILITY ---------- Small Storage Unit Improved Weapon Shielding > --- WEAPON ----------- Ion Cannon Makeshift Axe > --- INVENTORY -------- Ion Engine Wheel Improved Trap Extractor Subdweller Laser Battle Rifle Battle Cannon Heavy Flail Shrapnel Trap [Rating: 17] Favorites ----------- Power Light Nuclear Core Engine Ion Engine Power Core Light Nuclear Core Propulsion Light Treads Treads Light Treads Leg Aluminum Leg Utility Small Storage Unit Device Improved Trap Extractor Storage Small Storage Unit Processor Targeting Computer Protection Improved Weapon Shielding Weapon Assault Rifle Energy Gun EM Pulse Gun Energy Cannon Ion Cannon Ballistic Gun Assault Rifle Launcher Subdweller Shrapnel Launcher Impact Weapon Heavy Flail Slashing Weapon Makeshift Axe Build | -11 -10 -10 -10 ------- Run | Yrd Mat Min Sub Slots Evolved . | . . . . Power . | . . . . Propulsion . | . . . . Utility . | . . . . Weapon . | . . . . Parts Attached 12 | . 1 7 4 Power 1 | . . 1 . Engine . | . . . . Core 1 | . . 1 . Reactor . | . . . . Propulsion 2 | . . 2 . Treads 2 | . . 2 . Leg . | . . . . Wheel . | . . . . Hover . | . . . . Flight . | . . . . Utility 4 | . 1 2 1 Device 1 | . . 1 . Storage . | . . . . Processor 1 | . 1 . . Hackware . | . . . . Protection 2 | . . 1 1 Artifact . | . . . . Weapon 5 | . . 2 3 Energy Gun . | . . . . Energy Cannon 1 | . . . 1 Ballistic Gun 1 | . . 1 . Ballistic Cannon . | . . . . Launcher 1 | . . . 1 Special Weapon . | . . . . Impact Weapon 1 | . . 1 . Slashing Weapon 1 | . . . 1 Piercing Weapon . | . . . . Special Melee Weapon . | . . . . Unidentified Prototypes . | . . . . Parts Lost 3 | . . . 3 Power 1 | . . . 1 Propulsion 1 | . . . 1 Utility 1 | . . . 1 Weapon . | . . . . Highest Loss Streak 3 | . . . 3 To Critical Strikes . | . . . . Average Backups 5 | . 6 3 5 Power . | . 1 1 . Propulsion 1 | . 4 2 . Utility . | . . . 1 Weapon 2 | . 1 . 3 Tool/Special . | . . . . Unused Backups 7 | . . 2 5 Power 2 | . . 2 . Propulsion . | . . . . Utility . | . . . . Weapon 5 | . . . 5 Tool/Special . | . . . . Average Slot Usage (%) 95 | . 95 99 93 Engine 4 | . 14 11 . Core 9 | . . 2 14 Treads 25 | . . 21 28 Leg 2 | . 28 6 . Storage 9 | . 14 14 7 Processor 4 | . 10 12 . Protection 9 | . . 1 14 Energy Gun 1 | . 14 3 . Energy Cannon 8 | . . . 13 Ballistic Gun 9 | . 14 24 1 Launcher 1 | . . . 2 Impact Weapon 3 | . . . 5 Slashing Weapon 3 | . . . 5 Peak Build Rating 17 | . 7 14 17 Average Rating 13 | . 6 7 15 On Entrance 8 | 6 6 7 14 Avg Prop Armor Cover (%) . | . . . . Naked Turns . | . . . . Heaviest Build 37 | 14 14 17 37 Greatest Support 40 | 20 20 40 40 Greatest Overweight (x) . | . . . . Average Overweight (x) . | . . . . Largest Inventory Capacity 8 | . 8 8 8 Average Capacity 7 | . 8 8 6 Most Carried 8 | . 6 8 8 Average Carried 6 | . 6 7 6 Final Capacity 8 | 8 8 8 5 Final Carried 6 | 6 6 6 5 Class Distribution -------------------- 100% | Mutant Dominant Class ---------------- Mutant | -10/Materials Mutant | -10/Mines Mutant | -10/Subcaves Resources | -11 -10 -10 -10 ----------- Run | Yrd Mat Min Sub Matter Collected 598 | 200 10 38 350 Remotely . | . . . . Salvage Created 714 | . . 107 607 Parts 39 | . . 3 36 Haulers Intercepted . | . . . . Recyclers Shooed . | . . . . Parts Field Recycled . | . . . . Retrieved Matter . | . . . . Parts Self-Destructed 14 | . . . 14 Prevented . | . . . . Parts Restored . | . . . . Kills | -11 -10 -10 -10 ------- Run | Yrd Mat Min Sub Combat Hostiles Destroyed 21 | . . 2 19 Melee 5 | . . . 5 Guns 2 | . . 2 . Cannons 2 | . . . 2 AOE 12 | . . . 12 Classes Destroyed 8 | . . 2 6 Builder 1 | . . 1 . Turret 1 | . . . 1 Swarmer 3 | . . . 3 Grunt 2 | . . 2 . Artisan 1 | . . . 1 Cobbler 1 | . . . 1 Subdweller 16 | . . . 16 Scientist 1 | . . . 1 Best Kill Streak 7 | . . 1 7 Combat Bots Only 7 | . . 1 7 Max Kills in Single Turn 3 | . . 1 3 Gunslinging . | . . . . Exploded 2 | . . . 2 Melee 1 | . . . 1 Uniques/NPCs Destroyed . | . . . . Combat | -11 -10 -10 -10 -------- Run | Yrd Mat Min Sub Hostile Shots Fired 77 | . . 12 65 Missed 31 | . . 3 28 Hits 46 | . . 9 37 Projectile 46 | . . 9 37 Critical Strikes 1 | . . . 1 Damage Taken 1266 | . . 167 1099 Core 251 | . . 15 236 Absorbed by Shields . | . . . . Redirected to Shielding 79 | . . . 79 Core Remaining (%) 100 | 100 . . . Volleys Fired 30 | . . 7 23 Largest 2 | . . 2 2 Hottest 100 | . . 60 100 Shots Fired 44 | . . 14 30 Gun 14 | . . 14 . Cannon 17 | . . . 17 Launcher 13 | . . . 13 Special . | . . . . Kinetic 20 | . . 7 13 Thermal 17 | . . . 17 Explosive . | . . . . Electromagnetic 7 | . . 7 . Robot Hit Streak 17 | . . 9 17 Robot Miss Streak 1 | . . 1 1 Penetration Max . | . . . . Secondary Targets . | . . . . Shots Hit Robots 62 | . . 13 49 Core Hits 38 | . . 6 32 Critical Kills 1 | . . 1 . Critical Parts Destroyed . | . . . . Critical Strikes 2 | . . 1 1 Destroy 1 | . . 1 . Smash 1 | . . . 1 Melee Attacks 50 | . . 3 47 Impact 17 | . . 3 14 Slashing 33 | . . . 33 Piercing . | . . . . Sneak Attacks 7 | . . 1 6 Combat Hostiles 1 | . . . 1 Follow-up Attacks . | . . . . Damage Inflicted 2810 | . . 306 2504 Guns 149 | . . 149 . Cannons 325 | . . . 325 Explosions 1083 | . . . 1083 Melee 1240 | . . 144 1096 Ramming 13 | . . 13 . Kinetic 1147 | . . 64 1083 Thermal 325 | . . . 325 Explosive . | . . . . Electromagnetic 85 | . . 85 . Impact 335 | . . 144 191 Slashing 905 | . . . 905 Piercing . | . . . . Highest Corruption . | . . . . Average Corruption . | . . . . Corruption Purged . | . . . . Corruption Blocked . | . . . . Overload Shots . | . . . . Overflow Damage 246 | . . 124 122 Projectiles . | . . . . Explosions 25 | . . . 25 Melee 221 | . . 124 97 Knockbacks 2 | . . . 2 Impact 2 | . . . 2 Kinetic . | . . . . Secondary . | . . . . Self-Inflicted Damage 84 | . . . 84 Shots 2 | . . . 2 Rammed 3 | . . 3 . Targets Rammed 8 | . . 8 . Kicked 5 | . . 5 . Crushed . | . . . . Highest Temperature 54 | . . 54 5 Average Temperature 19 | . . 24 1 Received Heat Transfer 270 | . . 78 192 Siege Activations . | . . . . Martial Activations . | . . . . Shielding Activations . | . . . . Robots Disrupted . | . . . . Combat Hostiles . | . . . . Robots Corrupted 2 | . . 1 1 Combat Hostiles . | . . . . Parts Fried 1 | . . 1 . Impact Corruptions 5 | . . 4 1 Robots Melted . | . . . . Combat Hostiles . | . . . . Parts Melted . | . . . . Heat Transferred 518 | . . . 518 Parts Sabotaged . | . . . . Parts Stolen . | . . . . Parts Stripped . | . . . . Power Chain Reactions . | . . . . Alert | -11 -10 -10 -10 ------- Run | Yrd Mat Min Sub Maximum Alert Level . | . . . . Low Security (%) 100 | . 100 100 . Level 1 . | . . . . Level 2 . | . . . . Level 3 . | . . . . Level 4 . | . . . . Level 5 . | . . . . High Security . | . . . . Max Security . | . . . . Peak Influence 40 | . 5 40 . Initial . | . . . . Average 3 | . 1 3 . Influence Increases 176 | . 5 61 110 Destroy 0b10 Robot/C 120 | . . 40 80 Destroy 0b10 Robot/NC 5 | . . 5 . Destroy Leader 10 | . . 10 . Successful Hack 11 | . 5 6 . Lose Combat Pursuer 30 | . . . 30 Influence Decreases 176 | . 5 61 110 Time Decay 176 | . 5 61 110 Squads Dispatched . | . . . . Investigation . | . . . . Extermination . | . . . . Reinforcement . | . . . . Assault . | . . . . Garrison . | . . . . Intercept . | . . . . Searches Triggered . | . . . . Construction Impeded . | . . . . Haulers Reinforced . | . . . . Active Scanning Responses . | . . . . Cargo Convoy Interrupts . | . . . . Stealth | -11 -10 -10 -10 --------- Run | Yrd Mat Min Sub Distress Signals . | . . . . Communications Jammed . | . . . . Distress Signals . | . . . . Times Spotted 23 | . . 2 21 Peak Tracking Total 5 | . . 2 5 Tactical Retreats 2 | . . . 2 Traps | -11 -10 -10 -10 ------- Run | Yrd Mat Min Sub Traps Triggered . | . . . . Indirectly . | . . . . Trap Hack Attempts . | . . . . Triggered . | . . . . Disarmed . | . . . . Reprogrammed . | . . . . Reused 1 | . . . 1 Traps Extracted . | . . . . Installed 1 | . . . 1 Triggered . | . . . . Most Traps Carried 6 | . . 5 6 Machines | -11 -10 -10 -10 ---------- Run | Yrd Mat Min Sub Machines Disabled 3 | . . . 3 Max in Single Turn 2 | . . . 2 Machines Repaired . | . . . . Machines Dismantled . | . . . . Machines Sabotaged . | . . . . Overloaded Fab Kills . | . . . . Hacking | -11 -10 -10 -10 --------- Run | Yrd Mat Min Sub Machines Accessed 4 | . 1 2 1 Terminals 2 | . 1 1 . Fabricators . | . . . . Repair Stations . | . . . . Recycling Units . | . . . . Scanalyzers . | . . . . Garrison Access . | . . . . Total Hacks 15 | . 4 6 5 Successful 10 | . 2 3 5 Failed 4 | . 2 2 . Catastrophic 1 | . . 1 . Database Lockouts 1 | . . 1 . Manual 7 | . 2 5 . Terminals 9 | . 4 5 . Fabricators . | . . . . Repair Stations . | . . . . Recycling Units . | . . . . Scanalyzers . | . . . . Garrison Access . | . . . . Terminal Hacks 10 | . 2 3 5 Record 5 | . . . 5 Robot Analysis 1 | . . 1 . Open Door 1 | . . 1 . Branch Access Points 1 | . 1 . . Maintenance Status 1 | . . 1 . Zone Layout 1 | . 1 . . Fabricator Hacks . | . . . . Repair Station Hacks . | . . . . Recycling Unit Hacks . | . . . . Scanalyzer . | . . . . Garrison Access Hacks . | . . . . Unauthorized Hacks . | . . . . Terminals . | . . . . Fabricators . | . . . . Repair Stations . | . . . . Recycling Units . | . . . . Scanalyzers . | . . . . Garrison Access . | . . . . Data Cores Recovered . | . . . . Used . | . . . . Hacking Detections 2 | . 1 1 . Full Trace Events 2 | . 1 1 . Feedback Events . | . . . . Feedback Blocked . | . . . . Robot Schematics Acquired . | . . . . Robots Built . | . . . . Authchips . | . . . . Time . | . . . . Total Robot Build Rating . | . . . . Part Schematics Acquired . | . . . . Parts Built . | . . . . Authchips . | . . . . Time . | . . . . Total Part Build Rating . | . . . . Part Studies Acquired . | . . . . Parts Repaired . | . . . . Time . | . . . . Parts Recycled . | . . . . Recycled Matter . | . . . . Retrieved Matter . | . . . . Retrieved Components . | . . . . Parts Scanalyzed . | . . . . Part Schematics Acquired . | . . . . Parts Damaged . | . . . . Bothacking | -11 -10 -10 -10 ------------ Run | Yrd Mat Min Sub Used RIF Installer . | . . . . Robots Hacked . | . . . . Non-combat . | . . . . Combat . | . . . . Robot Hacks Applied . | . . . . Relay Couplers Released . | . . . . Fabnet Peak Effective % . | . . . . Robots Rewired . | . . . . Allies Hacked . | . . . . Hacks Repelled . | . . . . Allies | -11 -10 -10 -10 -------- Run | Yrd Mat Min Sub Total Allies . | . . . . Largest Group . | . . . . Highest-Rated Group . | . . . . Highest-Rated Ally . | . . . . Total Orders . | . . . . Ally Attacks . | . . . . Total Damage . | . . . . Kills . | . . . . Allies Corrupted . | . . . . Allies Melted . | . . . . Intel | -11 -10 -10 -10 ------- Run | Yrd Mat Min Sub Active Infowar (turns) . | . . . . Robot Analysis Total 1 | . . 1 . Derelict Logs Recovered 2 | . . 1 1 Drone Launches . | . . . . Drone Recoveries . | . . . . Exploration | -11 -10 -10 -10 ------------- Run | Yrd Mat Min Sub Turns Passed 2128 | . 60 681 1387 Spaces Moved 1196 | 1 49 408 738 Core . | . . . . Treads 1054 | . . 316 738 Legs 142 | 1 49 92 . Wheels . | . . . . Hover . | . . . . Flight . | . . . . Fastest Speed 120 | 120 120 120 160 Average Speed 155 | 120 120 150 160 Slowest Speed 160 | 120 120 160 160 Overloaded Moves . | . . . . Propulsion Burnouts . | . . . . Robots Hopped . | . . . . Potential Cave-ins 3 | . . . 3 Cave-ins Triggered 1 | . . . 1 Exploration Rate (%) 40 | 2 15 81 64 Regions Visited 3 Branch Regions 2 Pre-discovered Areas 1 | . . . 1 Known Exits Taken 1 | . 1 . . Unknown Exits Taken 2 | 1 . 1 . Scrap Searched 7 | . . . 7 Spaces Dug 5 | . . . 5 Terrain Destroyed 149 | . . . 149 Melee 5 | . . . 5 Projectile 1 | . . . 1 AOE 143 | . . . 143 Terrain Rammed . | . . . . Walls Destroyed . | . . . . Machines Disabled . | . . . . Actions | -11 -10 -10 -10 --------- Run | Yrd Mat Min Sub Total 1368 | . 49 455 864 Wait 26 | . . 6 20 Move 1193 | . 48 407 738 Hop . | . . . . Pick Up 14 | . . 7 7 Fast Attach 3 | . 1 1 1 Attach 5 | . . 3 2 Detach 2 | . . 1 1 Swap 10 | . . 3 7 Drop 20 | . . 9 11 Fire 30 | . . 7 23 Melee 50 | . . 3 47 Ram . | . . . . Kick 5 | . . 5 . Crush 3 | . . 3 . Escape Stasis . | . . . . Rewire . | . . . . Trap 1 | . . . 1 Miscellaneous 6 | . . . 6 Route ------- -11/Scrapyard -10/Materials -10/Mines (discovered 4 exits: [*Mat x2] / [*Exi] / *Sub) -10/Subcaves (discovered 2 exits: [*Mat] / [*Rec]) History --------- Turn | Location | Event 1 | -11/Scrapyard | Discovered new exit (range 0) 1 | -11/Scrapyard | Entered Materials 2 | -10/Materials | Met a group of wandering Federalists 27 | -10/Materials | Identified exit to Mines 61 | -10/Materials | Entered Mines 65 | -10/Mines | Met a Derelict bent on vengeance 104 | -10/Mines | Discovered new exit (range 7) 194 | -10/Mines | Found a hidden stash of uninstalled traps 284 | -10/Mines | Central database locked down 308 | -10/Mines | Build established: Mutant 365 | -10/Mines | Learned location of 1 exit from Materials 404 | -10/Mines | Deemed a non-threat by the Exiles lab entrance 404 | -10/Mines | Discovered new exit (range 5) 541 | -10/Mines | Discovered new exit (range 8) 633 | -10/Mines | Met a Derelict who couldn't figure out how to use a Trap Extractor 738 | -10/Mines | Discovered new exit (range 3) 742 | -10/Mines | Entered Subcaves 743 | -10/Subcaves | Approached by a straggling Scientist 752 | -10/Subcaves | Shifting Twisted Machinery released Sub. Laser 786 | -10/Subcaves | A swath of the cavern ceiling suddenly collapsed 835 | -10/Subcaves | Crushed by falling debris 853 | -10/Subcaves | Learned location of Storage (-9) 1049 | -10/Subcaves | Shifting Twisted Machinery released Shrapnel Trap 1100 | -10/Subcaves | Visited Clippyterm 1105 | -10/Subcaves | Learned Factory trap positions 1105 | -10/Subcaves | Learned Research machine intel 1131 | -10/Subcaves | Shifting Twisted Machinery released Battle Cannon 1401 | -10/Subcaves | Core integrity fell below 50% 1485 | -10/Subcaves | Ambushed by angry Subdweller bent on revenge 1583 | -10/Subcaves | Disturbed a concealed Subdweller 1677 | -10/Subcaves | Discovered new exit (range 14) 1792 | -10/Subcaves | Core integrity fell below 20% 1805 | -10/Subcaves | Discovered new exit (range 15) 1828 | -10/Subcaves | Destroyed 7 combat bots 2129 | -10/Subcaves | Destroyed self with Subdweller Shrapnel Launcher Last Messages --------------- 02026_ Destroyed Wheel. 02032_ GY-F6V(O) cries out in pain. 02032_ GY-F6V(O) destroyed. 02037_ Scrap Shield Fragment affixed to Scrap Shield (+45). 02046_ Critical hit (Destroy). 02047_ T0-HD6(R) destroyed. 02108_ Searching scrap... 02108_ Found Barrage Gun. 02108_ Found Sub. Monowheel. 02108_ Found 58 Matter. 02121_ Dropped Shrapnel Trap. 02121_ Installed Shrapnel Trap. 02123_ HW-42P(R) triggered Shrapnel Trap. 02123_ An expanding cloud of shrapnel blasts out in all directions. 02123_ Scrap Shield destroyed. 02124_ Lgt. Nuclear Core destroyed. 02127_ GL-QPO(R) destroyed. 02129_ HW-42P(R) destroyed. 02129_ Lgt. Treads destroyed. 02129_ Destroyed Lgt. Treads. Map ----- +----------------------------------------------------+ | ????????????????????????????????????? | | ????????????????????????????????????? | | ????????????????????????????????????? | | ????????????????????????????????????? | | ????????????????????????????????????? | | ????????????????????????????????????? | | ????????????????????????????????????? | | ????????????????????????????????????? | | ????????????????????????????????????? | | ????????????????????????????????????? | | ????????????????????????????????????? | | ????????????????????????????????????? | | ????????????????????????????????????? | | ????????????????????????????????????? | | ????????????????????????????????????? | | ?????????????????? ?????????????????? | | ?????????????????# ?????????????????? | | ????????????????? ?????????????????? | | ????????????????? ???#?????????????? | | ????????????????? #?? #?????????????? | | ???????#######??? ## ?????? ???????? | | ???????? <<<<##?? ????## ???????? | | ?????????" <### ????# ????????? | | ?????????##$[ ;# ???? ?????????? | | ?????????#;%= ;# #???? ??????????? | | ??????????# @ #??? #???????????? | | ?????????#;; %* #?? #????????????? | | ?????????#; & ### #????????????? | | ?????????#; % #????????????? | | ?????????#; ##???????????? | | ?????????#;; ; ##??????????? | | ?????????#; ;;; #??????????? | | ?????????# ## ## #??????????? | | ?????????# < ### #? ##??????????? | | ????????? $ ##### ## ###???????????? | | ?????????###???# #?????????????? | | ???????????????## #?????????????? | | ????????????????# ##?????????????? | | ????????????????## #?????? #?????? | | ?????????????????# ##### #?????? | | ?????????????????# #?????? | | ?????????????????# # #?###???? | | ????????????????## #### ##?# ##??? | | ????????????????# #???##### ##?? | | ????????????????### ##### " ##? | | ??????????????????## # " ""## | | ???????????????????# ###" " # | | ???????????????????#### #?#### # | | ??????????????????????# "##???## | | ?????????????????????## ""#????## | +----------------------------------------------------+ Best States ------------- Heat Dissipation 25 Energy Generation 14 Energy Capacity 250 Matter Stores 300 Matter Capacity 300 Sight Range 16 Terrain Scan Density 10 Armor Coverage 800 Weapon Shielding 66 Evasion (%) 55 Targeting Accuracy 5 Recoil Reduction 2 Trap Extractor Capacity 6 Item Schematics ----------------- None Robot Schematics ------------------ None Fabricated ------------ Nothing Repaired ---------- Nothing Studied --------- None Alien Tech Used ----------------- None Achievements -------------- None Challenges ------------ None Game ------ Seed MultinovaRelayTerminator Manual? 0 Play Time 00:14:15 Cumulative 1378.7 hours Start 2026.08.24 @ 19:04:17 End 2026.08.25 @ 13:54:14 Sessions 3 Manual Loads 0 Difficulty Rogue Special Mode None Game No. 1694 Rogue 1410 Adventurer 124 Explorer 160 Win Type - Total 72 Types 55/0/11/4/1/0/0/1/0/0 Lore% 92 Gallery% 84 Achievement% 74 Wizard Run 0 Options --------- Layout 0 ASCII 0 Keyboard 1 Movement Numpad Keybinds 0 Fullscreen 2 Font 18/X11 Map View 76x50 Zoom Use 0% Tactical HUD 1 Map Filters NONE Filters NONE Steam 1 RUN: e9ad5b83-7e03-4c72-b871-fcb7673fc42b